bitfinex/quotes_SOLUSD_20240716
["timestamp","ask_amount","ask_price","bid_price","bid_amount"]
[1721116083282,6.3123,154.65,154.55,72.67]
[1721116083498,6.3123,154.65,154.56,45.0]
[1721116085172,16.5095,154.67,154.56,64.44]
[1721116085373,16.5095,154.67,154.57,10.0]
[1721116085573,7.73403464,154.69,154.58,88.23]
[1721116085877,6.1175,154.69,154.59,29.44]
[1721116086084,6.1175,154.69,154.6,45.0]
[1721116086694,6.1175,154.69,154.59,55.0]
[1721116087291,6.1175,154.69,154.59,74.44]
[1721116088399,1.61630243,154.72,154.6,39.44]
[1721116088584,22.9873,154.73,154.64,43.23]
[1721116088585,6.6212,154.73,154.64,43.23]
[1721116088905,6.6212,154.73,154.65,45.0]
[1721116089273,1.61584657,154.72,154.65,45.0]
[1721116089591,6.6212,154.73,154.65,45.0]
[1721116089795,3.06032639,154.76,154.65,64.44]
[1721116090479,3.06032639,154.76,154.65,45.0]
[1721116091511,9.52202639,154.76,154.65,45.0]
[1721116091677,3.06032639,154.76,154.65,45.0]
[1721116093486,3.06032639,154.76,154.66,10.0]
[1721116093803,3.06032639,154.76,154.64,43.23]
[1721116094199,3.06032639,154.76,154.64,72.67]
[1721116094411,3.06032639,154.76,154.64,53.23]
[1721116094720,3.06032639,154.76,154.65,10.0]
[1721116095010,1.4443647,154.76,154.67,72.67]
[1721116095177,1.4443647,154.76,154.68,45.0]
[1721116095797,1.4443647,154.76,154.64,43.23]
[1721116096005,1.61555345,154.75,154.64,43.23]
[1721116096407,8.07765345,154.75,154.61,59.5993]
[1721116096610,22.7656,154.74,154.61,49.5993]
[1721116096794,1.61615147,154.73,154.61,49.5993]
[1721116096980,1.61615147,154.73,154.62,35.8618]
[1721116097178,1.61615147,154.73,154.62,16.4218]
[1721116097882,1.61615147,154.73,154.63,45.0]
[1721116098311,1.61615147,154.73,154.62,45.0]
[1721116098605,1.61615147,154.73,154.62,64.44]
[1721116098777,1.61615147,154.73,154.62,74.44]
[1721116098974,1.61615147,154.73,154.62,45.0]
[1721116099177,1.61615147,154.73,154.62,74.44]
[1721116099391,6.4455,154.74,154.64,72.67]
[1721116099593,6.4455,154.74,154.65,45.0]
[1721116099806,3.06012433,154.76,154.66,29.44]
[1721116099994,1.4443647,154.76,154.67,45.0]
[1721116100697,1.4443647,154.76,154.69,10.0]
[1721116100988,1.4443647,154.76,154.7,45.0]
[1721116101195,1.4443647,154.76,154.7,88.23]
[1721116101587,1.4443647,154.76,154.7,114.3194]
[1721116102289,1.4443647,154.76,154.7,94.8794]
[1721116102493,1.4443647,154.76,154.67,26.3531]
[1721116102494,1.4443647,154.76,154.67,59.5831]
[1721116103022,1.4443647,154.76,154.67,43.23]
[1721116105019,1.4443647,154.76,154.69,10.0]
[1721116105318,1.4443647,154.76,154.7,43.23]
[1721116105528,1.4443647,154.76,154.7,62.65]
[1721116106026,1.4443647,154.76,154.7,43.23]
[1721116106690,1.4443647,154.76,154.7,62.65]
[1721116107409,1.4443647,154.76,154.71,29.42]
[1721116107620,1.4443647,154.76,154.71,45.5132]
[1721116108689,1.4443647,154.76,154.73,53.23]
[1721116109018,1.4443647,154.76,154.74,19.42]
[1721116109513,1.4443647,154.76,154.73,72.65]
[1721116110920,1.4443647,154.76,154.75,10.0]
[1721116111217,1.4443647,154.76,154.75,20.0]
[1721116111728,1.4443647,154.76,154.75,29.42]
[1721116112022,1.4443647,154.76,154.75,49.42]
[1721116113122,6.4868,154.86,154.78,29.42]
[1721116113293,6.4868,154.86,154.79,63.23]
[1721116113491,1.61458871,154.9,154.79,63.23]
[1721116113492,7.95258871,154.9,154.79,63.23]
[1721116113715,1.61427881,154.89,154.79,43.23]
[1721116114523,5.0,154.8,154.79,43.23]
[1721116114727,5.0,154.8,154.79,63.23]
[1721116115718,5.0,154.8,154.79,82.65]
[1721116116401,5.0,154.8,154.79,98.359]
[1721116117718,5.0,154.8,154.79,78.939]
[1721116118098,5.0,154.8,154.79,63.23]
[1721116118317,5.0,154.8,154.79,43.23]
[1721116119702,5.0,154.8,154.76,15.709]
[1721116119703,5.0,154.8,154.76,58.939]
[1721116121805,5.0,154.8,154.78,19.42]
[1721116122003,5.0,154.8,154.79,43.23]
[1721116123127,5.0,154.8,154.79,63.23]
[1721116123426,5.0,154.8,154.79,92.65]
[1721116125121,5.0,154.8,154.79,99.0161]
[1721116127632,6.338,154.9,154.81,29.42]
[1721116127943,6.338,154.9,154.83,10.0]
[1721116128237,0.7943647,154.91,154.84,20.0]
[1721116128412,0.7943647,154.91,154.83,29.42]
[1721116128742,0.7943647,154.91,154.84,20.0]
[1721116129320,0.7943647,154.91,154.83,29.42]
[1721116129522,0.7943647,154.91,154.84,20.0]
[1721116132332,0.7943647,154.91,154.84,39.42]
[1721116132512,0.7943647,154.91,154.85,53.23]
[1721116132714,0.7943647,154.91,154.86,20.0]
[1721116133439,0.7943647,154.91,154.82,43.23]
[1721116133630,0.7943647,154.91,154.83,49.42]
[1721116134138,0.7943647,154.91,154.85,10.0]
[1721116134542,0.7943647,154.91,154.85,29.42]
[1721116135348,0.7943647,154.91,154.89,10.0]
[1721116136226,0.7943647,154.91,154.9,38.43]
[1721116138335,0.7943647,154.91,154.89,72.65]
[1721116139335,0.7943647,154.91,154.9,39.42]
[1721116140054,6.3841,155.03,154.93,10.0]
[1721116140222,6.3841,155.03,154.95,43.23]
[1721116140421,6.3841,155.03,154.96,20.0]
[1721116141043,7.99667995,155.03,154.95,43.23]
[1721116141553,7.99667995,155.03,154.91,43.23]
[1721116142052,7.99667995,155.03,154.92,20.0]
[1721116142551,6.4509,155.02,154.91,43.23]
[1721116142856,1.61326104,155.01,154.88,53.23]
[1721116143155,8.06476104,155.01,154.88,43.23]
[1721116143323,6.4516,155.0,154.88,43.23]
[1721116143521,1.61359012,154.99,154.85,386.0]
[1721116143720,1.61359012,154.99,154.84,62.65]
[1721116143721,1.61377971,154.98,154.84,43.23]
[1721116143922,12.9066,154.96,154.84,43.23]
[1721116144147,15.6134,154.94,154.84,43.23]
[1721116144348,1.61393094,154.93,154.84,43.23]
[1721116144657,15.6134,154.94,154.84,43.23]
[1721116144658,15.6134,154.94,154.85,10.0]
[1721116145654,6.4533,154.96,154.87,53.23]
[1721116145953,6.4533,154.96,154.88,20.0]
[1721116146154,6.4533,154.96,154.89,10.0]
[1721116146350,6.4533,154.96,154.9,20.0]
[1721116146557,6.4533,154.96,154.88,39.42]
[1721116146558,6.4533,154.96,154.89,10.0]
[1721116146753,6.4533,154.96,154.9,20.0]
[1721116147062,16.2621,154.98,154.91,10.0]
[1721116147231,16.2621,154.98,154.91,29.42]
[1721116147429,16.2621,154.98,154.9,63.23]
[1721116148143,1.61322474,154.97,154.9,20.0]
[1721116148454,16.2621,154.98,154.9,72.65]
[1721116148651,16.2621,154.98,154.91,20.0]
[1721116149463,6.0766,155.0,154.91,30.0]
[1721116149633,6.0766,155.0,154.92,19.42]
[1721116150031,15.113,155.02,154.94,53.23]
[1721116150339,15.113,155.02,154.95,20.0]
[1721116154981,6.2523,155.04,154.96,29.42]
[1721116155149,6.2523,155.04,154.97,39.42]
[1721116157869,6.2523,155.04,154.92,19.42]
[1721116157870,1.61240326,155.03,154.92,19.42]
[1721116158042,6.2523,155.04,154.94,29.42]
[1721116158665,6.2523,155.04,154.91,58.3095]
[1721116158666,7.86495528,155.04,154.91,58.3095]
[1721116158861,7.86495528,155.04,154.93,19.42]
[1721116159044,7.86495528,155.04,154.92,10.0]
[1721116159256,7.86495528,155.04,154.94,10.0]
[1721116159467,7.86495528,155.04,154.92,10.0]
[1721116159676,6.2523,155.04,154.95,10.0]
[1721116159973,6.2523,155.04,154.95,29.42]
[1721116160153,6.2523,155.04,154.95,19.42]
[1721116160477,6.2523,155.04,154.95,29.42]
[1721116163065,6.2523,155.04,154.94,43.23]
[1721116163260,7.86485882,155.04,154.95,20.0]
[1721116163674,7.86485882,155.04,154.91,43.23]
[1721116163971,7.86485882,155.04,154.92,20.0]
[1721116163972,14.31495882,155.04,154.92,20.0]
[1721116164155,7.86485882,155.04,154.93,19.42]
[1721116164355,1.61278587,155.03,154.94,20.0]
[1721116164789,1.61278587,155.03,154.92,10.0]
[1721116164948,1.61278587,155.03,154.93,20.0]
[1721116165151,1.61278587,155.03,154.92,20.0]
[1721116166956,16.5259,155.02,154.92,20.0]
[1721116167158,1.61316674,155.01,154.9,20.0]
[1721116167681,1.61316674,155.01,154.9,49.42]
[1721116167882,1.61316674,155.01,154.93,10.0]
[1721116168054,16.5259,155.02,154.94,19.42]
[1721116169056,16.5259,155.02,154.94,62.65]
[1721116169391,16.5259,155.02,154.95,20.0]
[1721116172156,16.5259,155.02,154.94,20.0]
[1721116172467,16.5259,155.02,154.94,39.42]
[1721116174284,16.5259,155.02,154.94,20.0]
[1721116174486,1.6126939,155.01,154.92,20.0]
[1721116175170,18.13887343,155.02,154.92,30.0]
[1721116175481,16.5259,155.02,154.94,29.42]
[1721116175681,16.5259,155.02,154.95,20.0]
[1721116178387,6.2523,155.04,154.97,29.42]
[1721116178688,6.2523,155.04,154.98,20.0]
[1721116180788,6.2523,155.04,154.95,29.42]
[1721116180789,6.2523,155.04,154.96,20.0]
[1721116181087,6.2523,155.04,154.97,29.42]
[1721116181288,6.2523,155.04,154.98,20.0]
[1721116181770,6.2523,155.04,154.96,39.42]
[1721116182097,6.2523,155.04,154.96,20.0]
[1721116182666,6.2523,155.04,154.95,20.0]
[1721116183695,6.2523,155.04,154.89,6.69514803]
[1721116183696,6.6913,154.91,154.89,6.69514803]
[1721116183884,6.6913,154.91,154.79,43.23]
[1721116183885,1.61426972,154.9,154.79,43.23]
[1721116184082,0.2358,154.96,154.85,53.23]
[1721116184287,1.84928281,154.96,154.85,43.23]
[1721116184492,0.2358,154.96,154.85,43.23]
[1721116184810,1.84961551,154.96,154.85,43.23]
[1721116185491,1.84961551,154.96,154.85,72.65]
[1721116185693,0.2358,154.96,154.85,72.65]
[1721116185901,1.61362869,154.95,154.85,53.23]
[1721116186076,1.61362869,154.95,154.85,43.23]
[1721116186392,1.61362869,154.95,154.86,20.0]
[1721116186896,0.2358,154.96,154.86,20.0]
[1721116189602,0.2358,154.96,154.86,39.42]
[1721116190001,0.2358,154.96,154.86,49.42]
[1721116190503,0.2358,154.96,154.88,10.0]
[1721116190707,1.61351987,155.0,154.88,53.23]
[1721116190893,1.61351987,155.0,154.89,20.0]
[1721116193115,1.61351987,155.0,154.9,10.0]
[1721116193411,1.61351987,155.0,154.91,20.0]
[1721116194186,1.61351987,155.0,154.92,38.42]
[1721116195489,1.61351987,155.0,154.93,20.0]
[1721116198332,1.61351987,155.0,154.88,38.42]
[1721116198619,6.4528,154.97,154.88,38.42]
[1721116198798,6.046,155.01,154.88,38.42]
[1721116198799,1.6135463,154.96,154.88,38.42]
[1721116199205,6.4542,154.94,154.85,38.42]
[1721116199409,6.4512,154.92,154.85,38.42]
[1721116201433,6.4512,154.92,154.82,36.15535534]
[1721116201434,8.06928538,154.91,154.82,38.42]
[1721116201627,21.61388538,154.91,154.81,260.5]
[1721116202004,6.4562,154.89,154.81,260.5]
[1721116202303,1.6145479,154.88,154.81,260.5]
[1721116202519,1.61427906,154.9,154.81,260.5]
[1721116202714,1.61427007,154.89,154.81,260.5]
[1721116203028,8.06989149,154.91,154.81,260.5]
[1721116203595,1.61439149,154.91,154.81,260.5]
[1721116203808,6.4512,154.92,154.81,260.5]
[1721116203809,6.4512,154.92,154.81,36.15992922]
[1721116204002,4.3705,154.94,154.85,62.72]
[1721116204195,1.61372175,154.93,154.82,59.4971]
[1721116204505,1.61372175,154.93,154.83,39.42]
[1721116205422,4.3705,154.94,154.86,10.0]
[1721116205626,6.2392,154.96,154.87,20.0]
[1721116205825,1.61355197,154.95,154.87,20.0]
[1721116206221,1.61355197,154.95,154.84,20.0]
[1721116206407,1.61355197,154.95,154.84,49.42]
[1721116206614,1.61355197,154.95,154.84,39.42]
[1721116206815,1.61355197,154.95,154.84,30.0]
[1721116207014,1.61355197,154.95,154.84,20.0]
[1721116207424,1.61355197,154.95,154.83,20.0]
[1721116208004,1.61355197,154.95,154.83,39.42]
[1721116208631,1.61355197,154.95,154.84,29.42]
[1721116208804,1.61355197,154.95,154.85,20.0]
[1721116209435,8.06725197,154.95,154.85,20.0]
[1721116209612,8.06725197,154.95,154.84,20.0]
[1721116209812,8.06725197,154.95,154.83,20.0]
[1721116210299,1.61355197,154.95,154.83,30.0]
[1721116210500,1.61355197,154.95,154.83,49.42]
[1721116210701,1.61355197,154.95,154.85,10.0]
[1721116210929,1.61355197,154.95,154.86,20.0]
[1721116211642,6.2392,154.96,154.88,10.0]
[1721116211930,6.2392,154.96,154.89,20.0]
[1721116212514,6.2392,154.96,154.88,20.0]
[1721116212943,6.2392,154.96,154.88,30.0]
[1721116213535,6.2392,154.96,154.88,20.0]
[1721116215218,6.2392,154.96,154.88,30.0]
[1721116215841,6.2392,154.96,154.88,49.42]
[1721116216025,4.3705,154.98,154.9,10.0]
[1721116216229,7.81203128,155.0,154.91,20.0]
[1721116217379,7.81203128,155.0,154.88,30.0]
[1721116217838,7.81203128,155.0,154.9,10.0]
[1721116218043,7.81203128,155.0,154.87,43.3]
[1721116218337,6.4528,154.97,154.83,22.90198009]
[1721116218539,1.61360798,154.96,154.85,10.0]
[1721116218716,1.61360798,154.96,154.85,29.42]
[1721116218912,1.61360798,154.96,154.83,12.90198009]
[1721116219114,6.4536,154.96,154.83,6.74878009]
[1721116219349,8.06768233,154.95,154.83,6.74878009]
[1721116219647,8.06768233,154.95,154.82,43.3]
[1721116219816,8.06768233,154.95,154.82,50.04101337]
[1721116220018,8.06768233,154.95,154.82,69.46101337]
[1721116220516,8.06768233,154.95,154.83,20.0]
[1721116220925,6.4542,154.94,154.82,50.04101337]
[1721116221166,8.06872579,154.93,154.8,34.4766]
[1721116221363,4.3705,154.91,154.79,43.3]
[1721116221564,1.61439734,154.9,154.79,50.03818788]
[1721116221731,1.6143719,154.89,154.79,50.03818788]
[1721116222640,1.6143719,154.89,154.8,20.0]
[1721116223131,1.61439888,154.9,154.8,20.0]
[1721116223331,1.61428436,154.89,154.8,20.0]
[1721116223529,1.61428436,154.89,154.79,50.03818788]
[1721116223530,6.4579,154.85,154.79,6.73818788]
[1721116223766,6.0169,154.87,154.71,43.3]
[1721116223767,1.61506288,154.84,154.71,43.3]
[1721116224071,1.61506288,154.84,154.71,62.72]
[1721116224285,1.61506288,154.84,154.74,38.51]
[1721116224625,1.61516058,154.85,154.74,38.51]
[1721116224881,1.61516058,154.85,154.72,6.74775538]
[1721116225027,6.4586,154.84,154.72,6.74775538]
[1721116225232,21.6153918,154.83,154.72,6.74775538]
[1721116225551,6.4678,154.81,154.72,6.74775538]
[1721116225740,64.4960701,154.8,154.65,646.5]
[1721116225936,1.61598816,154.79,154.65,646.5]
[1721116226144,1.61598816,154.79,154.63,38.51]
[1721116226145,6.4617,154.76,154.63,38.51]
[1721116226338,73.07852209,154.75,154.59,16.5151]
[1721116226537,6.4633,154.72,154.56,43.4]
[1721116226851,1.61655282,154.71,154.56,43.4]
[1721116227056,1.61655282,154.7,154.57,19.42]
[1721116227531,1.61655282,154.7,154.59,10.0]
[1721116227859,1.61631652,154.73,154.61,10.0]
[1721116228062,1.61597529,154.74,154.63,29.42]
[1721116228267,6.278,154.76,154.66,29.42]
[1721116228555,1.61573475,154.79,154.67,39.42]
[1721116228950,1.61573475,154.79,154.67,20.0]
[1721116229150,1.61573475,154.79,154.66,39.42]
[1721116229541,1.61573475,154.79,154.66,20.0]
[1721116229963,6.4608,154.78,154.66,20.0]
[1721116230162,1.61573475,154.79,154.66,20.0]
[1721116230163,8.07706059,154.77,154.66,20.0]
[1721116230345,8.07752243,154.76,154.62,43.4]
[1721116230550,8.07752243,154.76,154.6,16.444]
[1721116230551,6.4621,154.75,154.6,16.444]
[1721116230869,88.6854,154.8,154.57,10.0]
[1721116230870,6.1741,154.73,154.57,10.0]
[1721116231043,1.61655648,154.72,154.57,10.0]
[1721116231378,21.61655648,154.72,154.57,29.42]
[1721116231675,4.3705,154.71,154.56,50.14582894]
[1721116231876,1.61675569,154.7,154.54,16.444]
[1721116232041,21.61675569,154.7,154.54,16.444]
[1721116232245,6.0855,154.69,154.53,10.7943647]
[1721116232549,1.61687741,154.68,154.55,10.0]
[1721116232761,1.61672636,154.67,154.55,10.0]
[1721116232967,1.61672636,154.67,154.56,20.0]
[1721116233378,1.61672636,154.67,154.55,20.0]
[1721116233545,1.61674154,154.68,154.57,10.0]
[1721116233745,7.70224154,154.69,154.59,10.0]
[1721116233967,7.70224154,154.69,154.6,20.0]
[1721116234177,7.70224154,154.69,154.6,63.4]
[1721116234352,6.0855,154.69,154.6,63.4]
[1721116234853,6.2766,154.73,154.62,10.0]
[1721116235056,1.61600751,154.72,154.63,20.0]
[1721116235460,6.2766,154.73,154.63,63.4]
[1721116236444,1.61596171,154.72,154.63,63.4]
[1721116237170,1.61596171,154.72,154.63,20.0]
[1721116237474,1.61596171,154.72,154.61,30.0]
[1721116237672,1.61596171,154.72,154.61,20.0]
[1721116237853,1.61596171,154.72,154.59,10.0]
[1721116238058,1.61596171,154.72,154.6,20.0]
[1721116238560,1.61596171,154.72,154.58,20.0]
[1721116238946,8.07926171,154.72,154.58,20.0]
[1721116239247,1.61596171,154.72,154.59,10.0]
[1721116239454,1.61596171,154.72,154.6,20.0]
[1721116239975,8.07926171,154.72,154.6,20.0]
[1721116240172,8.07926171,154.72,154.58,20.0]
[1721116240477,6.4641,154.7,154.58,20.0]
[1721116240682,8.08124264,154.69,154.57,43.4]
[1721116240857,1.61664264,154.69,154.54,43.4]
[1721116241061,1.61664264,154.69,154.55,10.0]
[1721116241877,1.61664264,154.69,154.57,43.4]
[1721116242183,1.61664264,154.69,154.58,20.0]
[1721116243054,1.61645293,154.71,154.59,10.0]
[1721116243255,1.61635958,154.7,154.6,20.0]
[1721116243554,1.61638396,154.71,154.61,10.0]
[1721116243860,1.61613758,154.72,154.62,39.42]
[1721116244048,6.2766,154.73,154.62,39.42]
[1721116244049,6.2766,154.73,154.63,53.4]
[1721116244253,6.2766,154.73,154.64,20.0]
[1721116244449,1.61596264,154.72,154.64,20.0]
[1721116244684,7.89258407,154.73,154.64,20.0]
[1721116245274,6.2766,154.73,154.64,39.42]
[1721116245657,1.61597719,154.75,154.64,39.42]
[1721116245863,4.3705,154.76,154.66,62.82]
[1721116246066,6.2235,154.77,154.67,20.0]
[1721116246478,6.2235,154.77,154.68,19.42]
[1721116246683,6.2235,154.77,154.68,29.42]
[1721116246983,6.2235,154.77,154.69,20.0]
[1721116247360,6.2235,154.77,154.69,39.42]
[1721116247560,4.3705,154.81,154.7,10.0]
[1721116247878,1.61519252,154.8,154.71,20.0]
[1721116248753,4.3705,154.81,154.72,19.42]
[1721116248956,4.3705,154.81,154.73,20.0]
[1721116248957,5.98542586,154.81,154.73,20.0]
[1721116249480,5.98542586,154.81,154.72,20.0]
[1721116249657,6.1742,154.82,154.73,10.0]
[1721116249855,6.1742,154.82,154.74,20.0]
[1721116250075,1.61489848,154.85,154.74,20.0]
[1721116250780,1.61489848,154.85,154.75,10.0]
[1721116250988,1.61489848,154.85,154.76,20.0]
[1721116251193,8.07279848,154.85,154.76,20.0]
[1721116251487,1.61489848,154.85,154.75,20.0]
[1721116251682,8.07289848,154.85,154.75,20.0]
[1721116251852,1.61489848,154.85,154.73,20.0]
[1721116252278,21.61489848,154.85,154.73,20.0]
[1721116252487,6.4327,154.79,154.67,10.0]
[1721116252664,1.61534565,154.78,154.68,19.42]
[1721116253053,6.4327,154.79,154.69,29.42]
[1721116253775,6.4327,154.79,154.7,39.42]
[1721116253989,6.4327,154.79,154.71,29.42]
[1721116254159,6.4327,154.79,154.72,20.0]
[1721116255575,6.2668,154.83,154.73,10.0]
[1721116255776,1.61492052,154.82,154.74,20.0]
[1721116256356,1.61492052,154.82,154.73,30.0]
[1721116256787,1.61492052,154.82,154.73,49.42]
[1721116256959,6.2668,154.83,154.73,49.42]
[1721116257263,4.3705,154.86,154.76,72.82]
[1721116257460,6.4251,154.87,154.78,10.0]
[1721116257686,6.4251,154.87,154.79,20.0]
[1721116259962,1.61440502,154.86,154.78,20.0]
[1721116260165,1.61459123,154.85,154.77,20.0]
[1721116260378,8.07249123,154.85,154.75,20.0]
[1721116260587,8.07279123,154.85,154.75,20.0]
[1721116260786,8.07279123,154.85,154.74,20.0]
[1721116260954,1.61459123,154.85,154.74,20.0]
[1721116261157,1.61459123,154.85,154.73,43.4]
[1721116261393,11.034,154.84,154.7,43.4]
[1721116261553,21.6152805,154.83,154.7,43.4]
[1721116261754,6.4598,154.81,154.67,53.4]
[1721116261958,8.07530543,154.8,154.67,53.4]
[1721116262182,1.61550371,154.79,154.67,43.4]
[1721116262869,1.61550371,154.79,154.67,53.4]
[1721116263079,1.61550371,154.79,154.68,20.0]
[1721116263587,1.61550371,154.79,154.67,43.4]
[1721116263971,10.5839,154.78,154.65,10.0]
[1721116264169,1.61567884,154.77,154.64,43.4]
[1721116264393,1.61582516,154.76,154.64,43.4]
[1721116265190,1.61582516,154.76,154.64,62.82]
[1721116265400,1.61580352,154.75,154.67,10.0]
[1721116265681,10.5839,154.78,154.66,19.42]
[1721116265682,1.61580352,154.77,154.66,19.42]
[1721116265893,12.1994926,154.78,154.67,29.42]
[1721116266100,1.61544546,154.77,154.67,62.82]
[1721116266265,1.61548843,154.76,154.67,43.4]
[1721116266475,1.61548843,154.76,154.68,20.0]
[1721116266775,1.61548843,154.76,154.64,43.4]
[1721116267663,1.61548843,154.76,154.62,26.15659201]
[1721116267664,1.61548843,154.76,154.62,6.73659201]
[1721116268092,6.4648,154.69,154.62,6.73659201]
[1721116268288,6.4648,154.69,154.57,10.0]
[1721116268289,1.61638477,154.68,154.57,10.0]
[1721116268594,7.86820207,154.67,154.59,6.74265685]
[1721116269480,6.2517,154.67,154.6,20.0]
[1721116269680,7.86817529,154.67,154.6,20.0]
[1721116270269,6.2517,154.67,154.6,20.0]
[1721116270669,6.2517,154.67,154.59,6.74265685]
[1721116270887,1.61648875,154.66,154.59,6.74265685]
[1721116271086,1.61648875,154.66,154.56,43.4]
[1721116271282,1.61648875,154.66,154.57,6.7419554]
[1721116271695,1.61648875,154.66,154.53,44.1943647]
[1721116271869,1.61648875,154.66,154.54,6.74100755]
[1721116272385,8.08228875,154.66,154.54,6.74100755]
[1721116272585,1.61648875,154.66,154.54,6.74100755]
[1721116272895,1.61648875,154.66,154.55,20.0]
[1721116273900,1.61648875,154.66,154.56,29.42]
[1721116274098,1.61648875,154.66,154.56,43.4]
[1721116274298,1.61648875,154.66,154.57,20.0]
[1721116275080,6.2517,154.67,154.57,20.0]
[1721116275279,1.61656675,154.66,154.57,20.0]
[1721116275998,6.2517,154.67,154.58,29.42]
[1721116276200,1.61642043,154.66,154.59,20.0]
[1721116276381,1.61642043,154.66,154.57,20.0]
[1721116278790,7.86858933,154.67,154.57,20.0]
[1721116278986,6.2517,154.67,154.58,10.0]
[1721116279298,6.2517,154.67,154.59,20.0]
[1721116279874,6.2517,154.67,154.6,10.0]
[1721116280077,4.3705,154.69,154.61,20.0]
[1721116280276,1.61630584,154.68,154.61,20.0]
[1721116280477,1.61630584,154.68,154.6,20.0]
[1721116280701,1.61642192,154.67,154.6,20.0]
[1721116280901,1.61642192,154.67,154.57,20.0]
[1721116282304,5.98708301,154.69,154.58,10.0]
[1721116282598,4.3705,154.69,154.6,10.0]
[1721116282790,6.4094,154.71,154.61,20.0]
[1721116283594,6.4094,154.71,154.63,43.4]
[1721116283804,6.4094,154.71,154.64,20.0]
[1721116284942,6.1853,154.75,154.66,43.4]
[1721116285218,6.1853,154.75,154.66,72.82]
[1721116285507,6.5356,154.8,154.69,53.4]
[1721116285812,1.61535972,154.79,154.69,53.4]
[1721116286793,1.61535972,154.79,154.69,43.4]
[1721116287117,1.61535972,154.79,154.68,19.42]
[1721116287408,1.61535972,154.79,154.69,20.0]
[1721116287793,6.4607,154.78,154.69,20.0]
[1721116288115,1.61561466,154.77,154.66,39.42]
[1721116288286,1.61557404,154.76,154.67,53.4]
[1721116288487,1.6155508,154.79,154.68,20.0]
[1721116288690,1.6155508,154.79,154.67,43.4]
[1721116289118,1.6155508,154.79,154.67,72.82]
[1721116289494,1.6155508,154.79,154.68,39.42]
[1721116291329,1.6155508,154.79,154.68,20.0]
[1721116291795,1.6155508,154.79,154.68,39.42]
[1721116291994,1.6155508,154.79,154.68,20.0]
[1721116293019,8.15104156,154.8,154.69,29.42]
[1721116293212,6.5356,154.8,154.7,63.4]
[1721116294435,6.5356,154.8,154.71,29.42]
[1721116294637,6.5356,154.8,154.72,20.0]
[1721116295710,4.3705,154.82,154.73,53.4]
[1721116295914,4.3705,154.82,154.75,10.0]
[1721116296129,6.3179,154.84,154.76,20.0]
[1721116296502,1.61473345,154.83,154.73,43.4]
[1721116296826,6.3179,154.84,154.74,49.42]
[1721116297205,1.61473502,154.83,154.74,20.0]
[1721116297407,6.3179,154.84,154.74,49.42]
[1721116298005,6.3179,154.84,154.76,43.4]
[1721116298201,6.3179,154.84,154.77,20.0]
[1721116300005,7.99776836,154.89,154.79,62.82]
[1721116300211,1.61423189,154.88,154.8,20.0]
[1721116300420,6.3832,154.89,154.8,30.0]
[1721116301106,6.3832,154.89,154.8,20.0]
[1721116301407,1.61424245,154.88,154.8,20.0]
[1721116302732,6.3832,154.89,154.8,30.0]
[1721116303145,6.3832,154.89,154.8,20.0]
[1721116303435,7.99745156,154.89,154.8,20.0]